{"text_format":"3","workbook":"xlsx","n_sheets":2,"sheets":["Začátek","Prodejní doklad"],"not_rendered":{"images":1,"defined_names":1},"read":"whole","date_system":"1900"}

{"sheet":"Začátek","index":0,"n_rows":7,"n_cols":2,"rows_kept":7}
[null,"INFORMACE O TÉTO ŠABLONĚ"]
[null,"Tuto šablonu můžete použít k vytvoření jednoduché účtenky."]
[null,"Zadejte název společnosti, způsob platby, číslo dokladu a podrobnosti o kupujícím."]
[null,"Do tabulky pak zadejte podrobnosti a součet se automaticky vypočítá za vás."]
[null,"Poznámka: "]
[null,"Další pokyny jsou k dispozici ve sloupci A na listu ÚČTENKA. Text těchto pokynů je záměrně skrytý. Pokud ho chcete odebrat, vyberte sloupec A a stiskněte klávesu DELETE."]
[null,"Další informace o tabulkách můžete získat tak, že v tabulce stisknete klávesy SHIFT a F10, vyberete možnost TABULKA a pak vyberete ALTERNATIVNÍ TEXT."]

{"sheet":"Prodejní doklad","index":1,"n_rows":44,"n_cols":7,"rows_kept":44,"merged":[[1,1,1,2],[1,3,1,6],[4,2,4,3],[5,2,5,3],[5,4,5,5],[6,2,6,3],[6,4,6,5],[7,2,7,3],[7,4,7,5],[8,2,8,3],[8,4,8,5],[10,1,10,2],[10,4,10,6],[11,1,11,2],[11,4,11,6],[42,1,42,6],[43,1,43,6],[46,2,46,4]]}
[]
[null,"V této buňce je zástupný symbol loga.",null,"Prodejní doklad"]
[null,"Název vaší společnosti",{"$nulls":3},"Datum:",{"$f":"TODAY()","v":"2022-05-26"}]
[null," Sem zadejte motto společnosti.",{"$nulls":3},"Č. faktury:","Číslo"]
[null,"Odběratel:","Jméno"]
[null,null,"Název společnosti"]
[null,null,"Ulice a číslo domu"]
[null,null,"Město, PSČ "]
[null,null,"Telefon"]
[]
[null,"Způsob platby",null,"Č. dokladu","Zakázka"]
[]
[]
[null,"Množ.","Č. položky","Popis","Jednotková cena","Sleva","Celkem za řádek"]
[{"$nulls":6},{"$f":"IF(SUM(B15)>0,SUM((B15*E15)-F15),\"\")","v":""}]
[{"$nulls":6},""]
[{"$nulls":6},""]
[{"$nulls":6},""]
[{"$nulls":6},""]
[{"$nulls":6},""]
[{"$nulls":6},""]
[{"$nulls":6},""]
[{"$nulls":6},""]
[{"$nulls":6},""]
[{"$nulls":6},""]
[{"$nulls":6},""]
[{"$nulls":6},""]
[{"$nulls":6},""]
[{"$nulls":6},""]
[{"$nulls":6},""]
[{"$nulls":6},""]
[{"$nulls":6},""]
[{"$nulls":6},""]
[{"$nulls":6},""]
[{"$nulls":6},""]
[{"$nulls":6},""]
[{"$nulls":6},""]
[{"$nulls":4},"Celková sleva",{"$f":"IF(SUM(F16:F37)>0,SUM(F16:F37),\"\")","v":""}]
[{"$nulls":5},"Mezisoučet",{"$f":"IF(SUM(G16:G37)>0,SUM(G16:G37),\"\")","v":""}]
[{"$nulls":5},"DPH"]
[null," ",{"$nulls":3},"Celkem",{"$f":"IF(SUM(G39)>0,SUM((G39*G40)+G39),\"\")","v":""}]
[]
[null,"Děkujeme vám, že využíváte naše služby!"]
[null,"Ulice a číslo domu, Město, PSČ  Telefon  Fax  E-mail"]